fUSD/lending_fUSD_20240420
["ID","MTS","AMOUNT","RATE_DAILY","PERIOD"]
[323056781,1713621132848,-7480.38,0.00018082,2]
[323056782,1713621132857,-1894.49,0.00018082,2]
[323056783,1713621132867,-873.58,0.00018082,2]
[323056784,1713621132877,-500.0,0.00018082,2]
[323056785,1713621132886,-1993.22,0.00018082,2]
[323056786,1713621132895,-880.45,0.00018082,2]
[323056787,1713621132905,-500.0,0.00018082,2]
[323056788,1713621132914,-1085.31,0.00018082,2]
[323056789,1713621132924,-500.0,0.00018082,2]
[323056790,1713621132935,-2753.72,0.00018082,2]
[323056791,1713621132945,-500.0,0.00018082,2]
[323056792,1713621132954,-1162.41,0.00018082,2]
[323056793,1713621132965,-2731.21,0.00018082,2]
[323056794,1713621132975,-500.0,0.00018082,2]
[323056795,1713621132985,-1954.97,0.00018082,2]
[323056796,1713621132995,-2627.79,0.00018082,2]
[323056797,1713621133004,-794.92,0.00018082,2]
[323056798,1713621133015,-1013.89,0.00018082,2]
[323056799,1713621133027,-1131.55,0.00018082,2]
[323056800,1713621133038,-622.04,0.00018082,2]
[323056801,1713621133047,-1320.88,0.00018082,2]
[323056802,1713621133058,-1413.35,0.00018082,2]
[323056803,1713621133068,-316.82196695,0.00018082,2]
[323056804,1713621133078,-500.0,0.00018082,2]
[323056805,1713621133087,-500.0,0.00018082,2]
[323056806,1713621133097,-2346.4,0.00018082,2]
[323056807,1713621133107,-563.88,0.00018082,2]
[323056808,1713621133116,-803.26,0.00018082,2]
[323056809,1713621133127,-2292.01,0.00018082,2]
[323056810,1713621133136,-500.0,0.00018082,2]
[323056811,1713621133145,-831.92,0.00018082,2]
[323056812,1713621133155,-5369.64,0.00018082,2]
[323056813,1713621133165,-1128.04,0.00018082,2]
[323056814,1713621133175,-3431.1,0.00018082,2]
[323056815,1713621133185,-680.01,0.00018082,2]
[323056816,1713621133194,-546.08,0.00018082,2]
[323056817,1713621133204,-2676.86,0.00018082,2]
[323056818,1713621133213,-727.28,0.00018082,2]
[323056819,1713621133223,-2216.75,0.00018082,2]
[323056820,1713621133232,-823.84,0.00018082,2]
[323056821,1713621133241,-500.0,0.00018082,2]
[323056822,1713621133251,-1588.82,0.00018082,2]
[323056823,1713621133261,-841.25,0.00018082,2]
[323056824,1713621133274,-1811.35,0.00018082,2]
[323056825,1713621133284,-500.0,0.00018082,2]
[323056826,1713621133295,-500.0,0.00018082,2]
[323056827,1713621133307,-906.35,0.00018082,2]
[323056828,1713621133316,-866.08,0.00018082,2]
[323056829,1713621133325,-1171.0,0.00018082,2]
[323056830,1713621133335,-3500.27,0.00018082,2]
[323056831,1713621133344,-506.37,0.00018082,2]
[323056832,1713621133355,-1349.52,0.00018082,2]
[323056833,1713621133364,-4084.13,0.00018082,2]
[323056834,1713621133373,-2730.13,0.00018082,2]
[323056835,1713621133383,-1215.96,0.00018082,2]
[323056836,1713621133393,-500.0,0.00018082,2]
[323056837,1713621133402,-275.91150365,0.00018082,2]
[323056838,1713621133413,-500.0,0.00018082,2]
[323056839,1713621133422,-570.63,0.00018082,2]
[323056840,1713621133431,-1517.62,0.00018082,2]
[323056841,1713621133441,-2492.62,0.00018082,2]
[323056842,1713621133451,-1694.66,0.00018082,2]
[323056843,1713621133461,-589.63,0.00018082,2]
[323056844,1713621133471,-1038.52,0.00018082,2]
[323056845,1713621133480,-500.0,0.00018082,2]
[323056846,1713621133490,-544.68,0.00018082,2]
[323056847,1713621133500,-745.95,0.00018082,2]
[323056848,1713621133509,-500.0,0.00018082,2]
[323056849,1713621133519,-2146.81,0.00018082,2]
[323056850,1713621133530,-500.0,0.00018082,2]
[323056851,1713621133540,-12863.04,0.00018082,2]
[323056852,1713621133550,-1580.69,0.00018082,2]
[323056853,1713621133559,-872.9,0.00018082,2]
[323056854,1713621133569,-500.0,0.00018082,2]
[323056855,1713621133579,-2481.94,0.00018082,2]
[323056856,1713621133590,-2416.85,0.00018082,2]
[323056857,1713621133599,-517.67,0.00018082,2]
[323056858,1713621133609,-716.61,0.00018082,2]
[323056859,1713621133619,-607.93,0.00018082,2]
[323056860,1713621133628,-500.0,0.00018082,2]
[323056861,1713621133638,-698.46,0.00018082,2]
[323056862,1713621133648,-1176.49,0.00018082,2]
[323056863,1713621133658,-1895.23,0.00018082,2]
[323056864,1713621133668,-2366.37,0.00018082,2]
[323056865,1713621133678,-834.84,0.00018082,2]
[323056866,1713621133688,-500.0,0.00018082,2]
[323056867,1713621133698,-500.0,0.00018082,2]
[323056868,1713621133708,-1264.42,0.00018082,2]
[323056869,1713621133718,-500.0,0.00018082,2]
[323056870,1713621133728,-1525.57,0.00018082,2]
[323056871,1713621133738,-1200.1,0.00018082,2]
[323056872,1713621133747,-500.0,0.00018082,2]
[323056873,1713621133757,-2596.31,0.00018082,2]
[323056874,1713621133767,-3734.56,0.00018082,2]
[323056875,1713621133779,-735.18,0.00018082,2]
[323056876,1713621133790,-1983.17,0.00018082,2]
[323056877,1713621133799,-685.33,0.00018082,2]
[323056878,1713621133810,-1892.67,0.00018082,2]
[323056879,1713621133821,-794.67,0.00018082,2]
[323056880,1713621133830,-2762.86,0.00018082,2]
[323056881,1713621133840,-698.53,0.00018082,2]
[323056882,1713621133850,-500.0,0.00018082,2]
[323056883,1713621133859,-4314.41,0.00018082,2]
[323056884,1713621133869,-928.74,0.00018082,2]
[323056885,1713621133879,-704.33,0.00018082,2]
[323056886,1713621133888,-500.0,0.00018082,2]
[323056887,1713621133897,-556.39,0.00018082,2]
[323056888,1713621133906,-4750.03,0.00018082,2]
[323056889,1713621133917,-500.0,0.00018082,2]
[323056890,1713621133928,-6352.14,0.00018082,2]
[323056891,1713621133937,-554.92,0.00018082,2]
[323056892,1713621133946,-1612.53,0.00018082,2]
[323056893,1713621133955,-1230.53,0.00018082,2]
[323056894,1713621133964,-500.0,0.00018082,2]
[323056895,1713621133974,-1323.32,0.00018082,2]
[323056896,1713621133984,-5730.53,0.00018082,2]
[323056897,1713621133993,-3222.01,0.00018082,2]
[323056898,1713621134002,-1237.83,0.00018082,2]
[323056899,1713621134011,-801.29,0.00018082,2]
[323056900,1713621134021,-500.0,0.00018082,2]
[323056901,1713621134030,-184.93321268,0.00018082,2]
[323056902,1713621134040,-8896.9,0.00018082,2]
[323056903,1713621134049,-1250.13,0.00018082,2]
[323056904,1713621134058,-21516.91,0.00018082,2]
[323056905,1713621134067,-1238.37,0.00018082,2]
[323056906,1713621134077,-618.25,0.00018082,2]
[323056907,1713621134087,-1269.11,0.00018082,2]
[323056908,1713621134096,-622.79,0.00018082,2]
[323056909,1713621134105,-582.42,0.00018082,2]
[323056910,1713621134114,-1653.42809813,0.000181,2]
[323056911,1713621134124,-150.0,0.00018123,2]
[323056912,1713621134133,-10029.77741795,0.00018145,2]
[323056913,1713621134142,-995.78,0.0001817,2]
[323056914,1713621134152,-800.0,0.00018208,2]
[323056915,1713621134161,-1393.0,0.00018214,2]
[323056916,1713621134170,-2294.0,0.00018214,2]
[323056917,1713621134180,-969.0,0.00018214,2]
[323056918,1713621134189,-461.0,0.00018214,2]
[323056919,1713621134198,-1228.0,0.00018214,2]
[323056920,1713621134208,-1255.0,0.00018214,2]
[323056921,1713621134217,-541.0,0.00018214,2]
[323056922,1713621134226,-1938.0,0.00018214,2]
[323056923,1713621134236,-609.0,0.00018214,2]
[323056924,1713621134245,-257.0,0.00018214,2]
[323056925,1713621134255,-807.0,0.00018214,2]
[323056926,1713621134265,-436.0,0.00018214,2]
[323056927,1713621134276,-3118.0,0.00018214,2]
[323056928,1713621134287,-150.0,0.00018214,2]
[323056929,1713621134297,-399.0,0.00018214,2]
[323056930,1713621134309,-2444.0,0.00018214,2]
[323056931,1713621134318,-1474.0,0.00018214,2]
[323056932,1713621134328,-214.0,0.00018214,2]
[323056933,1713621134338,-1640.0,0.00018214,2]
[323056934,1713621134348,-1140.0,0.00018214,2]
[323056935,1713621134358,-443.0,0.00018214,2]
[323056936,1713621134367,-2704.0,0.00018214,2]
[323056937,1713621134377,-5727.0,0.00018214,2]
[323056938,1713621134388,-37676.0,0.00018214,2]
[323056939,1713621134398,-5891.0,0.00018214,2]
[323056940,1713621134407,-859.5,0.00018214,2]
[323056941,1713621134417,-150.0,0.00018214,2]
[323056942,1713621134426,-25175.0,0.00018222,2]
[323056943,1713621134436,-150.0,0.00018295,2]
[323056944,1713621134446,-150.0,0.0001832,2]
[323056945,1713621134455,-285.0,0.0001833,2]
[323056946,1713621134466,-500.0,0.00018356,2]
[323056947,1713621134475,-1039.36,0.00018356,2]
[323056948,1713621134484,-500.0,0.00018356,2]
[323056949,1713621134494,-635.04,0.00018356,2]
[323056950,1713621134503,-639.54,0.00018356,2]
[323056951,1713621134512,-500.0,0.00018356,2]
[323056952,1713621134522,-500.0,0.00018356,2]
[323056953,1713621134531,-852.82,0.00018356,2]
[323056954,1713621134541,-654.32,0.00018356,2]
[323056955,1713621134550,-500.0,0.00018356,2]
[323056956,1713621134559,-502.56,0.00018356,2]
[323056957,1713621134568,-500.0,0.00018356,2]
[323056958,1713621134578,-611.35,0.00018356,2]
[323056959,1713621134587,-500.0,0.00018356,2]
[323056960,1713621134596,-735.88,0.00018356,2]
[323056961,1713621134606,-717.35,0.00018356,2]
[323056962,1713621134615,-500.0,0.00018356,2]
[323056963,1713621134624,-539.29,0.00018356,2]
[323056964,1713621134633,-500.0,0.00018356,2]
[323056965,1713621134642,-500.0,0.00018356,2]
[323056966,1713621134650,-500.0,0.00018356,2]
[323056967,1713621134659,-500.0,0.00018356,2]
[323056968,1713621134669,-500.0,0.00018356,2]
[323056969,1713621134678,-635.2111742,0.00018356,2]
[323056970,1713621134687,-569.73,0.00018356,2]
[323056971,1713621134697,-500.0,0.00018356,2]
[323056972,1713621134705,-637.21,0.00018356,2]
[323056973,1713621134715,-827.03,0.00018356,2]
[323056974,1713621134724,-500.0,0.00018356,2]
[323056975,1713621134734,-579.7,0.00018356,2]
[323056976,1713621134743,-969.36,0.00018356,2]
[323056977,1713621134752,-781.94,0.00018356,2]
[323056978,1713621134762,-667.13,0.00018356,2]
[323056979,1713621134772,-500.0,0.00018356,2]
[323056980,1713621134782,-500.0,0.00018356,2]
[323056981,1713621134791,-500.0,0.00018356,2]
[323056982,1713621134800,-500.0,0.00018356,2]
[323056983,1713621134810,-500.0,0.00018356,2]
[323056984,1713621134820,-500.0,0.00018356,2]
[323056985,1713621134829,-770.44,0.00018356,2]
[323056986,1713621134839,-1099.12,0.00018356,2]
[323056987,1713621134848,-597.89,0.00018356,2]
[323056988,1713621134858,-500.0,0.00018356,2]
[323056989,1713621134867,-522.54,0.00018356,2]
[323056990,1713621134877,-500.0,0.00018356,2]
[323056991,1713621134886,-512.78032096,0.00018356,2]
[323056992,1713621134896,-532.55,0.00018356,2]
[323056993,1713621134905,-500.0,0.00018356,2]
[323056994,1713621134914,-618.57,0.00018356,2]
[323056995,1713621134922,-500.0,0.00018356,2]
[323056996,1713621134932,-737.86,0.00018356,2]
[323056997,1713621134942,-500.0,0.00018356,2]
[323056998,1713621134951,-515.87,0.00018356,2]
[323056999,1713621134961,-500.0,0.00018356,2]
[323057000,1713621134970,-912.68,0.00018356,2]
[323057001,1713621134979,-394.4107507,0.00018356,2]
[323057002,1713621134989,-860.75,0.00018356,2]
[323057003,1713621134998,-500.0,0.00018356,2]
[323057004,1713621135007,-702.21,0.00018356,2]
[323057005,1713621135016,-500.0,0.00018356,2]
[323057006,1713621135025,-458.14177361,0.00018356,2]
[323057007,1713621135036,-500.0,0.00018356,2]
[323057008,1713621135045,-821.61,0.00018356,2]
[323057009,1713621135055,-821.76,0.00018356,2]
[323057010,1713621135065,-500.0,0.00018356,2]
[323057011,1713621135074,-500.0,0.00018356,2]
[323057012,1713621135084,-500.0,0.00018356,2]
[323057013,1713621135094,-500.0,0.00018356,2]
[323057014,1713621135103,-500.0,0.00018356,2]
[323057015,1713621135113,-940.84,0.00018356,2]
[323057016,1713621135122,-500.0,0.00018356,2]
[323057017,1713621135131,-863.56,0.00018356,2]
[323057018,1713621135140,-1083.21,0.00018356,2]
[323057019,1713621135149,-500.0,0.00018356,2]
[323057020,1713621135158,-1649.11,0.00018356,2]
[323057021,1713621135168,-500.0,0.00018356,2]
[323057022,1713621135178,-500.0,0.00018356,2]
[323057023,1713621135187,-933.2,0.00018356,2]
[323057024,1713621135196,-1738.53,0.00018356,2]
[323057025,1713621135206,-500.0,0.00018356,2]
[323057026,1713621135215,-500.0,0.00018356,2]
[323057027,1713621135225,-641.19,0.00018356,2]
[323057028,1713621135234,-546.2,0.00018356,2]
[323057029,1713621135243,-669.09,0.00018356,2]
[323057030,1713621135252,-538.48,0.00018356,2]
[323057031,1713621135261,-500.0,0.00018356,2]
[323057032,1713621135271,-526.85,0.00018356,2]
[323057033,1713621135280,-1472.9,0.00018356,2]
[323057034,1713621135290,-633.05,0.00018356,2]
[323057035,1713621135306,-500.0,0.00018356,2]
[323057036,1713621135315,-679.04,0.00018356,2]
[323057037,1713621135325,-500.0,0.00018356,2]
[323057038,1713621135335,-889.7,0.00018356,2]
[323057039,1713621135345,-749.34,0.00018356,2]
[323057040,1713621135355,-614.66,0.00018356,2]
[323057041,1713621135364,-669.86,0.00018356,2]
[323057042,1713621135375,-627.14,0.00018356,2]
[323057043,1713621135385,-500.0,0.00018356,2]
[323057044,1713621135395,-887.51,0.00018356,2]
[323057045,1713621135404,-500.0,0.00018356,2]
[323057046,1713621135413,-595.2,0.00018356,2]
[323057047,1713621135422,-500.0,0.00018356,2]
[323057048,1713621135432,-500.0,0.00018356,2]
[323057049,1713621135442,-712.4,0.00018356,2]
[323057050,1713621135451,-654.49,0.00018356,2]
[323057051,1713621135461,-583.86,0.00018356,2]
[323057052,1713621135470,-714.19,0.00018356,2]
[323057053,1713621135479,-500.0,0.00018356,2]
[323057054,1713621135489,-543.54,0.00018356,2]
[323057055,1713621135498,-856.07,0.00018356,2]
[323057056,1713621135508,-519.9,0.00018356,2]
[323057057,1713621135518,-1382.29,0.00018356,2]
[323057058,1713621135529,-191.51675547,0.00018356,2]
[323057059,1713621135539,-704.01,0.00018356,2]
[323057060,1713621135549,-500.0,0.00018356,2]
[323057061,1713621135559,-778.05,0.00018356,2]
[323057062,1713621135569,-943.86,0.00018356,2]
[323057063,1713621135579,-533.87,0.00018356,2]
[323057064,1713621135589,-1206.79,0.00018356,2]
[323057065,1713621135598,-864.0,0.00018356,2]
[323057066,1713621135607,-871.35,0.00018356,2]
[323057067,1713621135617,-581.68,0.00018356,2]
[323057068,1713621135627,-998.69,0.00018356,2]
[323057069,1713621135636,-580.51,0.00018356,2]
[323057070,1713621135646,-564.88,0.00018356,2]
[323057071,1713621135656,-777.99,0.00018356,2]
[323057072,1713621135666,-566.7,0.00018356,2]
[323057073,1713621135675,-614.26019065,0.00018356,2]
[323057074,1713621135685,-772.56,0.00018356,2]
[323057075,1713621135694,-922.4,0.00018356,2]
[323057076,1713621135703,-332.27209302,0.00018356,2]
[323057077,1713621135713,-741.19,0.00018356,2]
[323057078,1713621135722,-500.0,0.00018356,2]
[323057079,1713621135731,-510.23,0.00018356,2]
[323057080,1713621135741,-500.0,0.00018356,2]
[323057081,1713621135751,-1301.99,0.00018356,2]
[323057082,1713621135760,-1011.91,0.00018356,2]
[323057083,1713621135770,-729.34,0.00018356,2]
[323057084,1713621135780,-598.99,0.00018356,2]
[323057085,1713621135789,-590.27,0.00018356,2]
[323057086,1713621135799,-500.0,0.00018356,2]
[323057087,1713621135808,-983.5,0.00018356,2]
[323057088,1713621135817,-500.0,0.00018356,2]
[323057089,1713621135826,-500.0,0.00018356,2]
[323057090,1713621136047,-500.0,0.00018356,2]
[323057091,1713621136060,-829.71,0.00018356,2]
[323057092,1713621136070,-500.0,0.00018356,2]
[323057093,1713621136080,-605.59,0.00018356,2]
[323057094,1713621136090,-500.0,0.00018356,2]
[323057095,1713621136100,-1243.7,0.00018356,2]
[323057096,1713621136110,-1886.34,0.00018356,2]
[323057097,1713621136120,-500.0,0.00018356,2]
[323057098,1713621136129,-685.34,0.00018356,2]
[323057099,1713621136140,-500.0,0.00018356,2]
[323057100,1713621136149,-500.0,0.00018356,2]
[323057101,1713621136158,-500.0,0.00018356,2]
[323057102,1713621136167,-500.0,0.00018356,2]
[323057103,1713621136177,-612.53,0.00018356,2]
[323057104,1713621136186,-723.5,0.00018356,2]
[323057105,1713621136196,-730.92,0.00018356,2]
[323057106,1713621136206,-500.0,0.00018356,2]
[323057107,1713621136216,-1025.52,0.00018356,2]
[323057108,1713621136226,-500.0,0.00018356,2]
[323057109,1713621136235,-500.0,0.00018356,2]
[323057110,1713621136244,-1486.68,0.00018356,2]
[323057111,1713621136254,-500.0,0.00018356,2]
[323057112,1713621136263,-970.1,0.00018356,2]
[323057113,1713621136272,-500.0,0.00018356,2]
[323057114,1713621136283,-600.76,0.00018356,2]
[323057115,1713621136295,-775.5,0.00018356,2]
[323057116,1713621136309,-580.95,0.00018356,2]
[323057117,1713621136319,-1195.92,0.00018356,2]
[323057118,1713621136329,-971.12,0.00018356,2]
[323057119,1713621136338,-558.98,0.00018356,2]
[323057120,1713621136348,-751.59,0.00018356,2]
[323057121,1713621136357,-1627.69,0.00018356,2]
[323057122,1713621136367,-1693.65,0.00018356,2]
[323057123,1713621136379,-500.0,0.00018356,2]
[323057124,1713621136388,-500.0,0.00018356,2]
[323057125,1713621136398,-712.6,0.00018356,2]
[323057126,1713621136407,-964.32,0.00018356,2]
[323057127,1713621136417,-611.81,0.00018356,2]
[323057128,1713621136427,-1500.36,0.00018356,2]
[323057129,1713621136437,-630.97,0.00018356,2]
[323057130,1713621136448,-1123.09,0.00018356,2]
[323057131,1713621136458,-500.0,0.00018356,2]
[323057132,1713621136467,-500.0,0.00018356,2]
[323057133,1713621136477,-571.83,0.00018356,2]
[323057134,1713621136486,-1122.67,0.00018356,2]
[323057135,1713621136496,-959.94,0.00018356,2]
[323057136,1713621136506,-666.18,0.00018356,2]
[323057137,1713621136515,-717.02,0.00018356,2]
[323057138,1713621136526,-500.0,0.00018356,2]
[323057139,1713621136535,-656.38,0.00018356,2]
[323057140,1713621136545,-672.57,0.00018356,2]
[323057141,1713621136555,-500.0,0.00018356,2]
[323057142,1713621136564,-817.63,0.00018356,2]
[323057143,1713621136574,-748.28,0.00018356,2]
[323057144,1713621136582,-1401.32,0.00018356,2]
[323057145,1713621136592,-1699.19,0.00018356,2]
[323057146,1713621136602,-500.0,0.00018356,2]
[323057147,1713621136611,-1021.58,0.00018356,2]
[323057148,1713621136621,-2008.01,0.00018356,2]
[323057149,1713621136630,-502.08,0.00018356,2]
[323057150,1713621136639,-623.84,0.00018356,2]
[323057151,1713621136648,-556.29,0.00018356,2]
[323057152,1713621136658,-1672.8,0.00018356,2]
[323057153,1713621136667,-1383.08,0.00018356,2]
[323057154,1713621136677,-500.0,0.00018356,2]
[323057155,1713621136687,-905.55,0.00018356,2]
[323057156,1713621136697,-500.0,0.00018356,2]
[323057157,1713621136706,-500.0,0.00018356,2]
[323057158,1713621136715,-500.0,0.00018356,2]
[323057159,1713621136725,-500.0,0.00018356,2]
[323057160,1713621136735,-1271.86,0.00018356,2]
[323057161,1713621136745,-531.26,0.00018356,2]
[323057162,1713621136754,-858.15,0.00018356,2]
[323057163,1713621136763,-500.0,0.00018356,2]
[323057164,1713621136772,-2051.78,0.00018356,2]
[323057165,1713621136783,-500.0,0.00018356,2]
[323057166,1713621136793,-2102.91,0.00018356,2]
[323057167,1713621136803,-495.25,0.00018356,2]
[323057168,1713621136813,-888.43,0.00018356,2]
[323057169,1713621136823,-500.0,0.00018356,2]
[323057170,1713621136834,-547.06,0.00018356,2]
[323057171,1713621136844,-191.56238264,0.00018356,2]
[323057172,1713621136854,-1220.03,0.00018356,2]
[323057173,1713621136864,-1132.15,0.00018356,2]
[323057174,1713621136874,-1428.28,0.00018356,2]
[323057175,1713621136884,-1590.37,0.00018356,2]
[323057176,1713621136894,-640.38,0.00018356,2]
[323057177,1713621136903,-621.99,0.00018356,2]
[323057178,1713621136913,-1083.02,0.00018356,2]
[323057179,1713621136923,-912.32,0.00018356,2]
[323057180,1713621136933,-1323.41,0.00018356,2]
[323057181,1713621136942,-443.34027496,0.00018356,2]
[323057182,1713621136952,-500.0,0.00018356,2]
[323057183,1713621136962,-590.76,0.00018356,2]
[323057184,1713621136972,-827.0,0.00018356,2]
[323057185,1713621136981,-720.61,0.00018356,2]
[323057186,1713621136991,-1207.81,0.00018356,2]
[323057187,1713621137001,-972.02,0.00018356,2]
[323057188,1713621137011,-1649.09,0.00018356,2]
[323057189,1713621137021,-3308.96,0.00018356,2]
[323057190,1713621137031,-1214.04,0.00018356,2]
[323057191,1713621137040,-500.0,0.00018356,2]
[323057192,1713621137050,-500.0,0.00018356,2]
[323057193,1713621137059,-500.0,0.00018356,2]
[323057194,1713621137068,-803.54,0.00018356,2]
[323057195,1713621137078,-1303.19,0.00018356,2]
[323057196,1713621137087,-3936.85,0.00018356,2]
[323057197,1713621137097,-586.97,0.00018356,2]
[323057198,1713621137106,-599.69,0.00018356,2]
[323057199,1713621137116,-1031.32,0.00018356,2]
[323057200,1713621137125,-789.55,0.00018356,2]
[323057201,1713621137134,-1204.32,0.00018356,2]
[323057202,1713621137143,-500.0,0.00018356,2]
[323057203,1713621137153,-500.0,0.00018356,2]
[323057204,1713621137163,-500.0,0.00018356,2]
[323057205,1713621137172,-702.73,0.00018356,2]
[323057206,1713621137181,-516.52,0.00018356,2]
[323057207,1713621137191,-3310.74,0.00018356,2]
[323057208,1713621137201,-500.0,0.00018356,2]
[323057209,1713621137210,-500.0,0.00018356,2]
[323057210,1713621137220,-2883.58,0.00018356,2]
[323057211,1713621137229,-1816.08,0.00018356,2]
[323057212,1713621137239,-585.36,0.00018356,2]
[323057213,1713621137248,-855.47,0.00018356,2]
[323057214,1713621137257,-534.99,0.00018356,2]
[323057215,1713621137266,-500.0,0.00018356,2]
[323057216,1713621137277,-25055.79,0.00018356,2]
[323057217,1713621137287,-2836.68,0.00018356,2]
[323057218,1713621137297,-1302.76,0.00018356,2]
[323057219,1713621137309,-1460.91,0.00018356,2]
[323057220,1713621137319,-11346.84,0.00018356,2]
[323057221,1713621137328,-604.68,0.00018356,2]
[323057222,1713621137338,-2104.73,0.00018356,2]
[323057223,1713621137348,-500.0,0.00018356,2]
[323057224,1713621137357,-500.0,0.00018356,2]
[323057225,1713621137367,-2073.42,0.00018356,2]
[323057226,1713621137377,-1526.62,0.00018356,2]
[323057227,1713621137387,-500.0,0.00018356,2]
[323057228,1713621137396,-1538.77,0.00018356,2]
[323057229,1713621137406,-17543.18,0.00018356,2]
[323057230,1713621137415,-500.0,0.00018356,2]
[323057231,1713621137425,-500.0,0.00018356,2]
[323057232,1713621137434,-4660.49,0.00018356,2]
[323057233,1713621137443,-2699.08,0.00018356,2]
[323057234,1713621137452,-500.0,0.00018356,2]
[323057235,1713621137461,-1179.82,0.00018356,2]
[323057236,1713621137471,-1530.53,0.00018356,2]
[323057237,1713621137480,-581.88,0.00018356,2]
[323057238,1713621137489,-2419.34,0.00018356,2]
[323057239,1713621137499,-500.0,0.00018356,2]
[323057240,1713621137509,-1491.91,0.00018356,2]
[323057241,1713621137518,-1046.7,0.00018356,2]
[323057242,1713621137528,-929.27,0.00018356,2]
[323057243,1713621137538,-1397.79,0.00018356,2]
[323057244,1713621137549,-2207.26,0.00018356,2]
[323057245,1713621137559,-5291.84,0.00018356,2]
[323057246,1713621137568,-983.83,0.00018356,2]
[323057247,1713621137577,-584.35,0.00018356,2]
[323057248,1713621137587,-689.72,0.00018356,2]
[323057249,1713621137596,-2126.15,0.00018356,2]
[323057250,1713621137607,-2569.48,0.00018356,2]
[323057251,1713621137616,-3579.93,0.00018356,2]
[323057252,1713621137626,-873.88,0.00018356,2]
[323057253,1713621137635,-820.73,0.00018356,2]
[323057254,1713621137646,-5218.13,0.00018356,2]
[323057255,1713621137656,-500.0,0.00018356,2]
[323057256,1713621137665,-500.0,0.00018356,2]
[323057257,1713621137674,-987.0,0.00018356,2]
[323057258,1713621137683,-20114.69,0.00018356,2]
[323057259,1713621137693,-893.57,0.00018356,2]
[323057260,1713621137702,-500.0,0.00018356,2]
[323057261,1713621137711,-637.43,0.00018356,2]
[323057262,1713621137721,-1731.18,0.00018356,2]
[323057263,1713621137731,-1285.12,0.00018356,2]
[323057264,1713621137741,-1109.59,0.00018356,2]
[323057265,1713621137750,-1096.27,0.00018356,2]
[323057266,1713621137759,-500.0,0.00018356,2]
[323057267,1713621137769,-725.21,0.00018356,2]
[323057268,1713621137779,-1089.81,0.00018356,2]
[323057269,1713621137788,-508.71,0.00018356,2]
[323057270,1713621137797,-500.0,0.00018356,2]
[323057271,1713621137808,-500.0,0.00018356,2]
[323057272,1713621137817,-520.08,0.00018356,2]
[323057273,1713621137827,-1517.58,0.00018356,2]
[323057274,1713621137837,-500.0,0.00018356,2]
[323057275,1713621137846,-1955.1,0.00018356,2]
[323057276,1713621137856,-500.0,0.00018356,2]
[323057277,1713621137865,-1531.19,0.00018356,2]
[323057278,1713621137875,-967.39,0.00018356,2]
[323057279,1713621137884,-620.62,0.00018356,2]
[323057280,1713621137894,-747.89,0.00018356,2]